[Event "DSOL-KO 2022"]
[Site "Germany"]
[Date "2022.05.20"]
[Round "3.1"]
[White "Roth, Niklas"]
[Black "Ketzner, Marcel"]
[Result "1-0"]
[ECO "D00"]
[WhiteElo "2113"]
[BlackElo "1952"]
[Annotator "TA"]
[PlyCount "105"]
[EventDate "2022.01.31"]
[EventType "team-tourn"]
[EventCountry "GER"]
[SourceTitle "playchess.com"]
[Source "ChessBase"]
[SourceQuality "1"]
[WhiteTeam "SF Ochtendung I"]
[BlackTeam "SC Agon Neumünster"]
[TimeControl "2700+15"]

{[%evp 9,105,-19,-20,-21,58,29,23,25,27,25,24,-33,-16,-48,0,-20,8,7,18,0,7,-46,0,-12,20,19,23,21,25,-25,41,-75,57,52,86,28,33,26,20,20,118,122,203,139,250,250,304,304,304,304,304,304,304,304,965,943,641,58,47,33,45,0,0,0,820,13,2619,2453,2214,1925,29971,29971,29963,29949,5732,2616,29975,29973,29976,29977,29976,29978,29978,29979,29979,29980,29980,29981,29981,29982,29982,29983,29984,29985,29985,29986,29986,29987]} 1. d4 d5 2. Bf4 Bf5 3. e3 e6 4. c4 Bxb1 5. Rxb1 Bb4+ 6. Ke2 {D00: 1 d4 d5: Unusual lines.} c6 {[#]} (6... dxc4 $11 7. Qc2 b5) 7. c5 $146 {And now Qb3 would win.} (7. Qb3 $5 {[%cal Rb3b4]} Na6 8. c5 $16) ({Predecessor:} 7. Qb3 Na6 8. c5 Qc8 9. Kd1 Ba5 10. Bxa6 bxa6 11. Qa4 Bd8 12. Ne2 Ne7 13. Nc3 {1-0 (52) Bui Ngoc Anh,T-Saleh,A (1565) Hue 2012}) 7... Ba5 8. b4 {White has an edge.} Bc7 9. Bxc7 Qxc7 10. f4 ({Better is} 10. g3 $11) 10... Nf6 $15 11. Nf3 Ne4 (11... O-O $15 {is more appropriate.}) 12. Qb3 Nd7 {[%cal Bb8d7,Bd7f6,Bf6e4][%mdl 32]} 13. Nd2 $1 Ndf6 14. Nxe4 Nxe4 15. Ke1 (15. g3 $11) 15... Qe7 (15... b5 $15 {feels stronger.}) 16. g3 O-O 17. Bd3 f5 18. Bxe4 fxe4 19. b5 (19. a4 $142) 19... Rab8 ({Black should play} 19... b6 $11) 20. a4 (20. bxc6 $14 {stays ahead.} b6 21. Kd2) 20... cxb5 (20... b6 $1 $17 21. Qa3 (21. bxc6 Qc7 $17) 21... bxc5 22. Qxc5 Qe8) 21. axb5 $14 g5 22. Qd1 ({White should try} 22. Rf1 $16) 22... gxf4 $11 23. Qg4+ Kh8 24. gxf4 Rg8 {Against Qg5} (24... e5 $11) 25. Qh5 $16 Qf6 (25... Rg7 $16) 26. Kf2 Rg7 (26... Qg7 $2 27. Rhg1 Qf6 28. Ra1 Rxg1 29. Rxg1) (26... h6 $16) 27. Rhg1 $18 Rbg8 28. Rxg7 {Really sharp!} Qxg7 29. Qe5 Qxe5 30. fxe5 {[%mdl 4096] Endgame KR-KR} ({Not} 30. dxe5 Rc8 $16) 30... Rf8+ 31. Ke2 {Strongly threatening Ra1.} Rc8 $2 (31... Rf7 32. Ra1 b6) 32. Ra1 Ra8 33. c6 $2 ({White has to play} 33. Kd2 $18 a5 34. bxa6 bxa6 35. Kc3) 33... bxc6 $14 34. bxc6 (34. b6 $5 a5 35. Rc1 $11) 34... a5 $1 35. Kd2 {Hoping for c7.} (35. Rb1 $5 {[%cal Rc6c7]} Rc8 36. Rc1 $11) 35... Rc8 36. Rc1 a4 $2 {[%mdl 8192] [#]} (36... Kg7 $11) 37. Rc2 $2 ({Worse is} 37. c7 a3 $11) ({White must play} 37. Rc5 $1 $18 {Threatens to win with Kc3.} a3 38. Kc3) 37... a3 $2 {[%mdl 8192] [#] This move loses the game for Black.} (37... Kg8 $11) 38. Kc1 $1 $18 {Black must now prevent Kb1.} a2 39. Kb2 Ra8 40. Ka1 Kg7 41. c7 Rc8 42. Kxa2 {Threatening mate with Ka3.} Kf7 43. Kb3 {White mates.} Ke7 44. Kb4 Kd7 45. Kb5 Rxc7 46. Rxc7+ Kxc7 {KP-KP} 47. Kc5 h6 48. h3 {[%cal Bh2h3,Bh3h4][%mdl 32]} Kd7 49. Kb6 h5 50. h4 Ke7 51. Kc7 Ke8 52. Kd6 Kf7 53. Kd7 {Weighted Error Value: White=0.51/Black=0.62} 1-0

[Event "DSOL-KO 2022"]
[Site "Germany"]
[Date "2022.05.20"]
[Round "3.1"]
[White "Zobel, Andrej"]
[Black "Otto, Andreas"]
[Result "1-0"]
[ECO "A42"]
[WhiteElo "2056"]
[BlackElo "1702"]
[Annotator "TA"]
[PlyCount "153"]
[EventDate "2022.01.31"]
[EventType "team-tourn"]
[EventCountry "GER"]
[SourceTitle "playchess.com"]
[Source "ChessBase"]
[SourceQuality "1"]
[WhiteTeam "SK Johanneum Eppendorf I"]
[BlackTeam "SG Turm Leipzig I"]
[TimeControl "2700+15"]

{[%evp 9,153,29,71,67,62,30,31,30,31,20,16,19,24,18,20,14,27,31,45,14,14,17,12,9,11,9,13,14,36,36,47,47,47,30,24,32,32,19,91,79,135,137,149,129,153,157,289,275,318,177,177,183,180,181,170,170,189,165,192,175,175,97,110,124,281,281,281,281,266,268,289,250,219,78,758,693,671,645,631,631,29973,627,627,624,606,551,532,500,29968,29958,29954,29941,29971,29972,29974,29974,29982,29973,29990,0,29982,29975,29974,29968,29971,29966,29956,9411,29962,1349,1340,1077,995,980,29941,29941,29965,1311,29974,29971,29972,29973,29972,29972,29971,29967,29966,29968,29975,29953,29959,29960,29947,2226,29969,29970,29969,29968,29971,29973,29969,29965,29967,29966,4132,991]} 1. d4 g6 2. c4 Bg7 3. e4 d6 4. Nc3 e5 5. Nge2 f5 6. dxe5 {A42: Modern Defence: Averbakh Variation.} Bxe5 {[#]} 7. Bf4 $146 ({Predecessor:} 7. g3 Nf6 8. exf5 Bxf5 9. Bg2 Nc6 10. O-O Qd7 11. Re1 O-O-O 12. Nb5 Ne4 13. f4 a6 14. fxe5 axb5 15. cxb5 {½-½ (42) Kesten,S (1835)-Nuber,K (2004) Willingen 2004}) 7... Nf6 8. Bxe5 {White is slightly better.} dxe5 9. Qxd8+ Kxd8 10. O-O-O+ Ke7 11. Nd5+ (11. exf5 {feels hotter.} Bxf5 12. f3 h5 13. Ng3) 11... Nxd5 12. exd5 Nd7 13. Nc3 Nf6 14. Bd3 e4 15. Rhe1 {Hoping for f3.} Kf7 16. Be2 Bd7 17. f3 Rhe8 18. Kc2 Re7 19. fxe4 Nxe4 20. Bf3 {[%cal Rf3e4]} Nxc3 21. Rxe7+ Kxe7 22. Kxc3 $14 {[%mdl 4096] Endgame KRB-KRB} Kd6 23. b4 a5 (23... b6 $1 $11) 24. c5+ $1 $16 Ke5 {[#]} (24... Ke7 $142) 25. a3 $1 {And now d6 would win.} axb4+ 26. axb4 {Strongly threatening d6.} Ra3+ 27. Kb2 Ra8 (27... Re3 $16) 28. d6 $18 cxd6 29. Bxb7 (29. Rd5+ $142 Kf6 30. Rxd6+ Ke7 31. Bxb7) 29... Rb8 30. c6 Bxc6 31. Bxc6 Rxb4+ {KRB-KR} 32. Kc3 Rb6 33. Bf3 Ra6 34. Re1+ Kf6 35. Kd4 (35. Bd5 $18) 35... g5 $16 36. Bd5 Ra4+ $2 {[#]} (36... g4 $16 37. g3 Rb6) 37. Bc4 $1 $18 g4 38. Re6+ Kg5 39. Rxd6 h5 40. Rd5 h4 41. Kc3 (41. Rc5 $18 {has better winning chances.}) 41... g3 $2 {[%mdl 8192]} (41... Ra1 $16) 42. h3 Ra3+ 43. Kd4 {Intending Bd3 and mate.} Ra4 44. Kc5 Kf6 45. Rd4 (45. Rd6+ $142 Ke5 46. Ra6 Rxa6 47. Bxa6 Ke4 48. Kd6 f4 49. Ke6 Kd4 50. Bb7) 45... Kg5 46. Bd5 Ra1 47. Kd6 Rf1 48. Rd3 f4 (48... Ra1 $18 49. Rc3 Kf6) 49. Bf3 Re1 50. Rd5+ Kg6 51. Re5 Rf1 52. Ke6 Rf2 53. Bh5+ Kh6 54. Bf3 Kg6 $1 55. Re2 {Prevents Ra2.} Rf1 56. Ke5 Kg5 57. Re4 Ra1 58. Be2 (58. Rb4 $142 Ra6 59. Be4 Ra5+ 60. Kd4 Kh6 61. Rb6+ Kh5 62. Rb7 Kg5 63. Rg7+ Kf6 64. Rg6+ Ke7 65. Rh6) 58... Ra5+ 59. Kd4 (59. Ke6 $142 Ra8 60. Re5+ Kg6 61. Bh5+ Kh6 62. Bf3 Re8+ 63. Kf5 Rh8 64. Kxf4) 59... Ra2 60. Re5+ Kf6 61. Re8 Rb2 62. Bf3 Rf2 63. Rh8 (63. Ke4 $142 Rb2 64. Kxf4 Rb4+ 65. Re4 Rb8 66. Ra4 Rd8 67. Ra6+ Kg7 68. Kg5) 63... Kg5 64. Rh5+ Kg6 65. Rxh4 Kg5 66. Rg4+ Kf5 67. Rg8 Rd2+ 68. Kc3 Rd6 69. Rh8 Kg5 70. Rh5+ Kg6 71. Rc5 {White threatens Rc6 and mate.} Rd8 72. Rd5 Rb8 73. Kd3 Rf8 74. Ke4 Rf6 75. Bg4 Rf8 76. Rf5 Re8+ 77. Kxf4 {Weighted Error Value: White=0.31/Black=0.30} 1-0

[Event "DSOL-KO 2022"]
[Site "Germany"]
[Date "2022.05.20"]
[Round "3.1"]
[White "Henkel, Maik"]
[Black "Birkemeyer, Jan"]
[Result "1/2-1/2"]
[ECO "D24"]
[WhiteElo "2031"]
[BlackElo "1833"]
[Annotator "TA"]
[PlyCount "84"]
[EventDate "2022.01.31"]
[EventType "team-tourn"]
[EventCountry "GER"]
[SourceTitle "playchess.com"]
[Source "ChessBase"]
[SourceQuality "1"]
[WhiteTeam "SF Seelscheid II"]
[BlackTeam "Bochumer SV"]
[TimeControl "2700+15"]

{[%evp 9,84,-8,6,-21,-20,-8,-20,-22,-30,-19,-20,-16,0,-14,-9,12,1,-45,-51,-115,-120,-125,-122,-287,-287,-273,-283,-324,-318,-368,-322,-324,-287,-461,-143,-189,0,-6,46,0,0,-32,-32,-31,-26,-158,-97,-395,-191,-191,-191,-191,-191,-191,-191,-191,-191,-191,-191,-191,-191,-191,-191,-191,-191,-191,-191,-191,-191,-191,-191,-29961,-474,-5065,-4631,-5636,-4706]} 1. d4 d5 2. c4 e6 3. Nc3 Nf6 4. Nf3 a6 5. Bg5 dxc4 6. e3 {D24: Queen's Gambit Accepted: 3 Nf3 Nf6 4 Nc3.} b5 7. a4 c6 8. axb5 {The position is equal.} cxb5 9. Nxb5 {[#]} axb5 $1 10. Rxa8 Bb7 11. Bxf6 gxf6 12. Ra1 Bb4+ 13. Nd2 (13. Ke2 $11 {should be considered.}) 13... e5 $15 {[%cal Be6e5,Be5d4,Bd4d3][%mdl 32] [#]} 14. Ra7 $146 (14. Bxc4 $15 bxc4 15. Qa4+ Nc6 16. Qb5) ({Predecessor:} 14. Qh5 O-O 15. Be2 exd4 16. Qxb5 Bxd2+ 17. Kxd2 dxe3+ 18. Ke1 Bxg2 19. Rd1 Qc7 20. Rg1 Qxh2 21. Rxg2+ Qxg2 22. fxe3 {0-1 (28) Gareyev,T (2600)-Nyzhnyk,I (2666) Orlando 2019}) 14... Qb6 $17 15. Rxb7 Qxb7 16. Qf3 $2 (16. Be2 $17 Qxg2 17. Bf3) 16... Qxf3 $19 17. gxf3 exd4 18. Kd1 d3 19. Rg1 Ke7 20. Rg4 Nd7 21. Re4+ (21. Nxc4 f5 22. Rf4 bxc4 23. Rxc4) 21... Kd6 $2 (21... Ne5 $1 $19 {Threatens to win with ...Ra8.} 22. f4 Ra8 $1) 22. Rd4+ {[#]} (22. Nxc4+ $17 bxc4 23. Rxc4) 22... Ke7 $2 (22... Ke6 $1 $19 {aiming for ...Ne5.} 23. Nxc4 bxc4 24. Rxc4 Rb8 25. Re4+ Kd6 26. Bxd3 Bc5) 23. Bxd3 Ne5 (23... Nc5 $11 24. Bf5 Ra8) 24. Be2 (24. Bf5 $14 {deserves consideration.}) 24... Ra8 25. f4 Ra1+ 26. Kc2 Nc6 27. Re4+ {Black keeps a firm grip on the game.} (27. Rd5 $11 Ba5 28. Rxb5 Nb4+ 29. Kc3 Rc1+ 30. Kd4 Nc2+ 31. Kc5 Bb4+ 32. Rxb4 Nxb4 33. Nxc4 (33. Kxb4 Rc2 $17)) 27... Kd8 (27... Kf8 $142 {...Bxd2 is the strong threat.} 28. Bxc4 bxc4 29. Rxc4 Bxd2 30. Kxd2 Ne7) 28. Bf3 $2 {[%mdl 8192]} (28. Nxc4 $17 bxc4 29. Rxc4) 28... f5 (28... Bxd2 $142 29. Kxd2 Rf1) 29. Re8+ Kxe8 30. Bxc6+ Ke7 31. Bxb5 Bxd2 32. Kxd2 {[%mdl 4096] Endgame KR-KB} Rb1 33. Bxc4 Rxb2+ 34. Ke1 {[#]} Rb1+ $1 35. Ke2 Rh1 36. Bd3 Kf6 ({Inferior is} 36... Rxh2 37. Bxf5 Rh5 38. e4 $17) 37. h4 Rxh4 {And now ...Rh1 would win.} 38. Kf3 Rh1 39. Kg2 {Against Rg1+} Re1 40. Kf3 $2 (40. Bc4 $19) 40... Rg1 {( -> ...h5)} 41. e4 (41. Ke2 $142) 41... fxe4+ 42. Bxe4 h5 {[%mdl 32768] Weighted Error Value: White=0.88/Black=0.29 (precise) . An unexpected result.} 1/2-1/2

[Event "DSOL-KO 2022"]
[Site "Germany"]
[Date "2022.05.20"]
[Round "3.1"]
[White "Kollars, Dmitrij"]
[Black "Plischki, Sebastian"]
[Result "1-0"]
[ECO "B28"]
[WhiteElo "1973"]
[BlackElo "1850"]
[Annotator "TA"]
[PlyCount "87"]
[EventDate "2022.01.31"]
[EventType "team-tourn"]
[EventCountry "GER"]
[SourceTitle "playchess.com"]
[Source "ChessBase"]
[SourceQuality "1"]
[WhiteTeam "SF Deizisau I"]
[BlackTeam "SK Rinteln I"]
[TimeControl "2700+15"]

{[%evp 12,87,25,24,25,16,23,24,35,33,35,21,12,47,39,18,77,56,78,75,80,68,71,62,88,93,89,54,54,42,33,40,96,6,98,20,20,20,16,0,47,42,113,102,132,132,133,137,125,129,168,181,158,160,250,247,241,230,249,238,402,392,467,447,629,612,693,686,850,784,776,754,919,887,831,815,676,672]} 1. e4 c5 2. Nf3 a6 3. c4 Nc6 4. d4 cxd4 5. Nxd4 Nf6 6. Nc3 e5 7. Nf5 d5 {The main line 7...d5 scores better than 7...d6. B28: Sicilian: 2 Nf3 a6 (O'Kelly Variation).} 8. cxd5 Nxe4 9. Nxg7+ Bxg7 {White has an edge.} 10. Nxe4 Nd4 11. Nc3 O-O 12. Bd3 f5 {[#]} 13. Be3 $146 ({Predecessor:} 13. O-O f4 14. f3 Rf6 15. Be4 Rh6 16. g3 Bh3 17. Rf2 Qb6 18. Qd3 Bd7 19. gxf4 Rf8 20. fxe5 Rxh2 21. Kxh2 Nxf3+ 22. Rxf3 Bxe5+ 23. Kg2 {1-0 (23) Brankovic,D (2312)-Goryachkina,A (2593) Chess.com INT 2021}) 13... b5 (13... f4 $1 $11 {keeps the balance.} 14. Bxd4 (14. Qh5 Bf5 $15) 14... exd4) 14. O-O $16 Bb7 15. Re1 b4 16. Bxd4 exd4 17. Ne2 {And now Nf4 would win.} Qxd5 {[%csl Gb7][%cal Rd5g2]} 18. Nf4 Qd6 19. Ne6 Rf6 20. Nxg7 Kxg7 (20... Qd5 $2 21. f3 $1 Kxg7 22. Re7+ Kh8 23. Qc2 $16) 21. Qe2 Raf8 (21... Kh8 $14) 22. Qe5 (22. f3 $16) 22... R8f7 {[#]} (22... Qxe5 $11 23. Rxe5 Be4) 23. Rac1 ({White should try} 23. f3 $1 $16) 23... Qxe5 $11 24. Rxe5 Be4 $1 25. Bf1 Rd6 (25... Rg6 $11) 26. f3 $36 {[%mdl 2048] White is pushing.} Kf6 {Black is on the road to losing.} (26... Bd5 $14) 27. Ra5 $16 Bb7 28. Bd3 Rd5 29. Rxd5 {White is more active.} Bxd5 {[%mdl 4096] Endgame KRB-KRB} 30. Rc5 ({Much less strong is} 30. Bxa6 $6 Ra7 31. Bc4 Rc7 $14) 30... Ke6 31. Ra5 ({Reject} 31. Bxa6 $6 Ra7 32. Bc4 Bxc4 33. Rxc4 d3 $11) 31... Rc7 32. Rxa6+ Ke5 (32... Rc6 $16 {was called for.}) 33. Ra5 $18 Kd6 34. Bxf5 Rc1+ 35. Kf2 Bc4 $2 (35... Rd1 36. b3 (36. Bxh7 Rd2+ 37. Kg3 Rxb2 $16) 36... Ra1) 36. b3 Rf1+ 37. Kg3 {White is clearly winning.} Be2 (37... Bd5 $142 38. Bxh7 Rd1) 38. Bxh7 d3 39. Be4 Rd1 40. h4 Ke6 41. Rd5 Ra1 42. Rd8 Ke7 {[#]} 43. Rd4 $1 Rxa2 44. Bxd3 {Weighted Error Value: White=0.13 (very precise) /Black=0.35} 1-0

[Event "DSOL-KO 2022"]
[Site "Germany"]
[Date "2022.05.20"]
[Round "3.1"]
[White "Gerland, Felix"]
[Black "Blübaum, Matthias"]
[Result "0-1"]
[ECO "D38"]
[WhiteElo "1959"]
[BlackElo "1957"]
[Annotator "TA"]
[PlyCount "80"]
[EventDate "2022.01.31"]
[EventType "team-tourn"]
[EventCountry "GER"]
[SourceTitle "playchess.com"]
[Source "ChessBase"]
[SourceQuality "1"]
[WhiteTeam "SK Rinteln I"]
[BlackTeam "SF Deizisau I"]
[TimeControl "2700+15"]

{[%evp 22,80,0,12,21,0,-3,-22,-25,-25,-31,-28,-22,-16,-23,-47,-36,-48,-42,-38,-40,-31,-41,-54,-47,-64,-24,-207,-207,-197,-200,-181,-192,-160,-168,-204,-183,-372,-399,-392,-391,-345,-389,-371,-353,-390,-389,-373,-289,-356,-331,-394,-387,-12831,-12834,-12833,-12225,-12835,-12836,-12834,-12833]} 1. c4 e6 2. Nf3 d5 3. d4 Nf6 4. Nc3 Bb4 5. Bg5 h6 6. Bxf6 Qxf6 7. cxd5 exd5 8. e3 O-O 9. Qb3 c5 10. dxc5 Bxc3+ 11. Qxc3 Qxc3+ 12. bxc3 Be6 {D38: Queen's Gambit Declined: Ragozin Defence (4 Nf3 Bb4).} 13. Rb1 Nd7 {[#]} 14. c6 $146 ({Predecessor:} 14. Nd4 Nxc5 15. c4 Rac8 16. Nxe6 fxe6 17. f3 Rfd8 18. cxd5 exd5 19. Rd1 Na4 20. Bd3 {0-1 (79) Sunilduth Lyna,N (2618)-Vaibhav,S (2600) Chess.com INT 2020}) 14... bxc6 {The position is equal.} 15. Bd3 Nc5 16. Bc2 Rfb8 17. O-O Ne4 18. Bxe4 dxe4 19. Nd4 Rxb1 20. Rxb1 Bxa2 $15 {[%mdl 4096] Endgame KRB-KRN} 21. Ra1 Bd5 22. Ra6 Kf8 23. g4 c5 24. Nb5 {[#]} (24. Nf5 $1 $11 {and White has nothing to worry.}) 24... Bc4 $1 $19 25. Rxa7 Rxa7 26. Nxa7 {KB-KN} Ke7 27. Nc8+ Ke6 28. Kg2 Bb3 {Strongly threatening ...Kd7.} 29. Nb6 (29. Na7) 29... Kd6 {aiming for ...Kc7.} 30. c4 Kc6 31. Nd5 Bxc4 32. Nc3 Bd3 {White must now prevent ...c4.} 33. f4 exf3+ $1 34. Kxf3 Kd6 35. Kf4 c4 {[%cal Bc5c4,Bc4c3,Bc3c2][%mdl 32]} 36. h4 Kc5 {Threatens to win with ...Kb4.} 37. e4 $2 (37. Na2 f6 38. Kf3) 37... Kb4 {Black is clearly winning.} 38. Nd5+ Kb3 39. Ke3 {[#]} c3 $1 40. Kxd3 {[#]} c2 $1 {Black took control after the opening.  Weighted Error Value: White=0.82/Black=0.05 (flawless)} 0-1

[Event "DSOL-KO 2022"]
[Site "Germany"]
[Date "2022.05.20"]
[Round "3.1"]
[White "Lehmann, Alexander"]
[Black "Gauer, Manuel"]
[Result "0-1"]
[ECO "B22"]
[WhiteElo "1948"]
[BlackElo "2032"]
[Annotator "TA"]
[PlyCount "75"]
[EventDate "2022.01.31"]
[EventType "team-tourn"]
[EventCountry "GER"]
[SourceTitle "playchess.com"]
[Source "ChessBase"]
[SourceQuality "1"]
[WhiteTeam "Lok Raw Cottbus"]
[BlackTeam "SC Landskrone"]
[TimeControl "2700+15"]

{[%evp 16,75,0,12,20,17,46,33,54,54,54,52,57,34,54,-4,-13,-43,-40,-45,36,-38,-50,-130,-119,-133,-139,-138,-117,-113,-121,-123,-113,-122,-124,-193,-202,-222,-135,-209,-114,-118,51,62,81,61,54,46,498,369,359,-80,-76,-77,-80,-84,-79,-86,-13,-13,-13,-29990]} 1. e4 {[%cal Be2e4,Be4e5][%mdl 32]} c5 2. c3 Nf6 3. e5 Nd5 4. Nf3 d6 5. Bc4 {[%cal Bf1c4,Bc4b3,Bb3c2][%mdl 32]} Nb6 6. Bb3 Nc6 7. exd6 Qxd6 8. O-O c4 9. Bc2 $1 Bg4 {B22: Sicilian: 2 c3.} 10. Re1 {Inhibits Ne5.} e6 {[%cal Oc6e5]} 11. b3 cxb3 {White is slightly better.} 12. axb3 Be7 13. d4 {[#]} O-O $146 ({Predecessor:} 13... Qd8 14. Be4 Bh5 15. Qd3 Bg6 16. Nbd2 Nd5 17. Bxg6 hxg6 18. Ne4 Qc7 19. b4 Rd8 {1-0 (34) Pavasovic,D (2547)-Freitag,M (2388) Austria 2002}) 14. Nbd2 Nd5 15. Ne4 (15. Bb2 $14) 15... Qc7 $11 16. Ng3 g6 17. Bd2 a6 (17... Bxf3 $15 18. gxf3 Rfd8) 18. h3 ({Better is} 18. Be4 $14) 18... Bxf3 $15 19. Qxf3 {[#]} (19. gxf3 $15 Bh4 20. Ne2) 19... Nxd4 $1 $17 {[%mdl 512]} 20. cxd4 {And now Be4 would win.} (20. Qe4 Nxc2) 20... Qxc2 21. Bh6 Rfd8 22. Ne4 Qc7 23. Rac1 Qd7 24. Nc5 {[#]} Qb5 25. Re5 (25. Qg4 $17 {might work better.}) 25... Rac8 $19 26. Rce1 Bf8 27. Bg5 (27. Bxf8 $17 Rxf8 28. h4) 27... Re8 ({Weaker is} 27... Bxc5 28. dxc5 Rd7 29. Bh6 Qxc5 30. Rc1 Qxc1+ 31. Bxc1 Rxc1+ 32. Kh2) ({Black should play} 27... Bg7 $19 28. Bxd8 Bxe5 29. dxe5 Rxc5) 28. Ne4 $17 {Black must now prevent Nf6+.} Qb4 $2 (28... Qb6 $17 {Threatens to win with ...Bg7.} 29. Nf6+ Nxf6 30. Bxf6 Qxd4 31. Qxb7 Qf4) 29. Bd2 $1 $14 Qxd4 {[#]} 30. Rxd5 {[%mdl 64] Remove Defender} exd5 31. Nf6+ Kh8 $2 {[%mdl 8192]} (31... Qxf6 $1 $14 32. Qxf6 Rxe1+ 33. Bxe1 Rc1) 32. Rxe8 Rxe8 33. Nxe8 $2 (33. Bc3 $18 Re3 34. Qxe3 (34. Bxd4 Rxf3 35. gxf3 Kg7 $18) 34... Qxe3 35. fxe3) 33... Qa1+ 34. Kh2 Qe5+ 35. g3 Qxe8 36. Qxd5 {[#]} b5 (36... Qe7 $1 $17) 37. Qd4+ $11 Bg7 38. Bh6 $2 {[%mdl 8192] Weighted Error Value: White=0.43/Black=0.52} 0-1

[Event "DSOL-KO 2022"]
[Site "Germany"]
[Date "2022.05.20"]
[Round "3.1"]
[White "Sander, Jean Louis"]
[Black "Kasims, Stefans"]
[Result "1/2-1/2"]
[ECO "B77"]
[WhiteElo "1947"]
[BlackElo "1759"]
[Annotator "TA"]
[PlyCount "94"]
[EventDate "2022.01.31"]
[EventType "team-tourn"]
[EventCountry "GER"]
[SourceTitle "playchess.com"]
[Source "ChessBase"]
[SourceQuality "1"]
[WhiteTeam "Hamburger SK II"]
[BlackTeam "SU Ebersberg-Grafing"]
[TimeControl "2700+15"]

{[%evp 23,94,41,47,37,43,10,20,18,22,0,28,0,0,-43,0,-15,-14,-59,0,-65,23,15,21,37,29,30,77,61,61,21,66,37,37,37,37,37,37,37,37,37,37,37,37,37,37,38,38,0,0,0,0,0,0,0,0,0,0,0,0,0,0,0,0,0,0,0,0,0,0,0,0,0,0]} 1. e4 c5 2. Nf3 d6 3. d4 cxd4 4. Nxd4 Nf6 5. Nc3 g6 6. f3 Bg7 7. Be3 O-O 8. Qd2 Nc6 9. Bc4 Nxd4 10. Bxd4 Be6 11. Bxe6 fxe6 12. O-O-O Qa5 13. Kb1 {B77: Sicilian Dragon: Yugoslav Attack, 9 Bc4 sidelines.} Rac8 14. h4 Nh5 15. Bxg7 Kxg7 16. Qe3 {[#]} b5 $146 (16... Qc5 $5 {[%cal Rc5e3]} 17. Qd2 Kg8 $11) ({Predecessor:} 16... e5 17. Nd5 e6 18. Nc3 Rc6 19. Qg5 Rb6 20. Rxd6 Rxb2+ 21. Kxb2 Qb4+ 22. Kc1 Qxd6 {½-½ (40) Ciuksyte,D (2294)-Pipia,E (2019) Tornelo INT 2020}) 17. g4 Nf4 18. Ne2 e5 (18... Qb6 $5 {[%cal Rb6e3]} 19. Qd2 e5 $11) 19. Nxf4 Rxf4 20. Qb3 Rc4 (20... Qa4 $15 21. Rd3 Qxb3 22. axb3 h5) 21. Rd5 ({Better is} 21. h5 $11) 21... Rb4 (21... Qa4 $1 $15 22. Qxa4 bxa4) 22. Qc3 $11 Ra4 $1 {[#] And now ...Qxc3 would win.} 23. Qxa5 Rxa5 {[%mdl 4096] Endgame KRR-KRR} 24. Rh3 Kf6 (24... Rf8 $11 {feels stronger.}) 25. c3 a6 26. Rd3 Ke6 27. h5 g5 $1 28. Rh2 h6 29. b3 Kd7 30. Rhd2 Kc6 31. Kb2 Rf8 32. a3 Kb6 33. Rc2 Rc8 34. Rc1 Rf8 35. b4 Ra4 {The position is equal.} 36. c4 a5 37. c5+ dxc5 38. Rxc5 ({Much worse is} 38. bxc5+ Kc6 39. Rd5 Rxf3 40. Rxe5 Rfxa3 $17) 38... axb4 39. Rxe5 bxa3+ 40. Rxa3 Rxa3 41. Kxa3 Rxf3+ {KR-KR} 42. Kb4 Rf4 43. Re6+ Kc7 44. Rxh6 Rxg4 45. Rg6 Rxe4+ 46. Kxb5 Rh4 47. Rxg5 Kd6 {Weighted Error Value: White=0.14 (very precise) /Black=0.11 (very precise)} 1/2-1/2

[Event "DSOL-KO 2022"]
[Site "Germany"]
[Date "2022.05.20"]
[Round "3.1"]
[White "Kurth, Robert"]
[Black "Nowak, Maksymilian"]
[Result "1-0"]
[ECO "C25"]
[WhiteElo "1910"]
[BlackElo "1726"]
[Annotator "TA"]
[PlyCount "69"]
[EventDate "2022.01.31"]
[EventType "team-tourn"]
[EventCountry "GER"]
[SourceTitle "playchess.com"]
[Source "ChessBase"]
[SourceQuality "1"]
[WhiteTeam "Bochumer SV"]
[BlackTeam "SF Seelscheid II"]
[TimeControl "2700+15"]

{[%evp 9,69,50,50,-74,-65,-202,-64,-55,-60,-64,193,68,136,118,910,911,872,856,859,860,1060,737,875,715,1425,1424,1424,1401,1328,1260,1715,1667,1694,1658,3041,5975,3114,3111,2434,2357,29984,29984,29990,29987,29980,29978,29988,29986,29986,29987,29987,29987,29990,29991,29991,29992,29992,29993,29994,29995,29996,29997]} 1. e4 e5 2. Bc4 Bc5 3. Nc3 Nc6 4. Qg4 Nd4 5. Qxg7 Qf6 {[#]} 6. Bxf7+ $1 {C25: Vienna Game: Alternatives to 2...Nf6.} Qxf7 $17 {[#]} 7. Qxh8 $146 {[#]} (7. Qxe5+ $15 Ne6 8. Nf3) ({Predecessor:} 7. Qxe5+ Ne6 8. Nf3 Nf6 9. Nd5 O-O 10. Nxf6+ Qxf6 11. Qxf6 Rxf6 12. d3 Be7 13. Bd2 {0-1 (32) Velasquez Sandoval,M-Parkes Navea,R (2038) ICCF email 2007}) 7... Nxc2+ ({Black should try} 7... d6 $1 $19 8. Rb1 Be6) 8. Kd1 $15 {Black is slightly better.} Nxa1 9. Qxe5+ Qe7 $2 {[%mdl 8192] [#]} (9... Be7 $1 $15 {stays ahead.} 10. f3 c6) 10. Qg3 (10. Qh5+ $1 $18 Kd8 11. Nge2) 10... Nf6 (10... Qf7 $14) 11. Nf3 $16 {Black must now prevent d4.} ({Don't do} 11. e5 Nh5 12. Qg8+ Qf8 13. Qxh7 Qf7 14. Qxf7+ (14. Qh8+ Bf8 $11) 14... Kxf7 $14) 11... Nxe4 $2 {[%mdl 8192]} (11... Qf7 $16) 12. Nxe4 $18 Qxe4 13. Re1 Qxe1+ 14. Nxe1 d6 15. b3 Nxb3 16. axb3 Bd7 17. Qg8+ Ke7 18. Qxa8 Bxf2 19. Qxb7 Bb6 20. Qe4+ Be6 21. Qxh7+ Bf7 22. Nf3 {Threatening mate with Ng5.} Ke8 23. d4 Bxb3+ 24. Ke1 {Intending Bg5 and mate.} Ba5+ 25. Bd2 {White mates.} Bb6 26. Qe4+ Kd7 27. h4 a5 28. Qf5+ Be6 29. Qb5+ Ke7 30. Bxa5 Bd7 31. Qg5+ Kf7 32. Bxb6 cxb6 33. h5 {[%cal Bh4h5,Bh5h6,Bh6h7][%mdl 32]} b5 34. h6 b4 35. h7 {Weighted Error Value: White=0.76/Black=2.11} 1-0